bitfinex/quotes_SOLUSD_20241117
["timestamp","ask_amount","ask_price","bid_price","bid_amount"]
[1731818288440,0.34465462,233.64,233.55,0.0517911]
[1731818288642,0.25098,233.69,233.55,35.93846638]
[1731818288864,0.25098,233.69,233.57,35.88667528]
[1731818288865,35.88667528,233.67,233.57,35.88667528]
[1731818289266,35.98667528,233.67,233.57,35.88667528]
[1731818289557,2.1382,233.84,233.66,48.60047528]
[1731818289761,5.5428,233.96,233.81,35.88667528]
[1731818289762,35.88667528,233.93,233.81,35.88667528]
[1731818290069,2.1372,233.95,233.88,35.88667528]
[1731818290271,2.137,233.97,233.88,35.88667528]
[1731818290556,2.137,233.97,233.9,35.88667528]
[1731818290868,2.137,233.97,233.88,35.88667528]
[1731818291163,2.137,233.97,233.86,35.88667528]
[1731818292164,2.1372,233.95,233.86,35.88667528]
[1731818292566,2.1372,233.95,233.84,35.88667528]
[1731818292876,2.1372,233.95,233.71,0.1]
[1731818292877,35.88667528,233.89,233.78,35.88667528]
[1731818293160,43.36687528,233.95,233.84,35.88667528]
[1731818293360,0.21916462,233.9,233.8,35.88667528]
[1731818293560,2.1372,233.95,233.84,35.88667528]
[1731818293865,0.09367462,233.91,233.82,35.88667528]
[1731818294055,36.0803499,233.91,233.8,35.88667528]
[1731818294261,2.1376,233.9,233.8,35.88667528]
[1731818294563,0.09367462,233.89,233.8,35.88667528]
[1731818294763,0.31916462,233.86,233.76,35.88667528]
[1731818295062,7.5817,233.9,233.55,0.0517911]
[1731818295063,0.09367462,233.74,233.55,0.0517911]
[1731818295270,35.88667528,233.73,233.63,35.88667528]
[1731818296145,35.9803499,233.69,233.59,35.88667528]
[1731818296441,2.1393,233.72,233.63,35.88667528]
[1731818297342,0.34465462,233.71,233.63,35.88667528]
[1731818297543,0.34465462,233.68,233.59,35.88667528]
[1731818297757,35.88667528,233.67,233.57,35.88667528]
[1731818298667,0.34465462,233.68,233.59,35.88667528]
[1731818299164,35.88667528,233.61,233.55,0.0517911]
[1731818299551,2.1404,233.6,233.55,0.0517911]
[1731818300056,16.0447,233.72,233.58,35.88667528]
[1731818300262,35.88667528,233.65,233.56,35.88667528]
[1731818300455,0.21916462,233.64,233.56,35.88667528]
[1731818300983,0.21916462,233.64,233.55,0.0517911]
[1731818301354,0.21916462,233.64,233.54,35.88667528]
[1731818301580,0.21916462,233.62,233.54,35.88667528]
[1731818301870,35.88667528,233.57,233.52,0.1769469]
[1731818302051,0.21916462,233.54,233.52,0.1769469]
[1731818303056,36.1058399,233.53,233.52,0.1769469]
[1731818303356,0.1,233.54,233.52,0.1769469]
[1731818303555,2.141,233.53,233.52,0.1769469]
[1731818303869,2.1405,233.58,233.52,0.1769469]
[1731818305077,35.88667528,233.68,233.57,35.88667528]
[1731818305250,35.88667528,233.66,233.57,35.88667528]
[1731818305451,35.88667528,233.64,233.54,35.88667528]
[1731818305664,2.1401,233.63,233.54,35.88667528]
[1731818305863,2.1401,233.63,233.52,36.06362218]
[1731818305864,35.88667528,233.62,233.52,36.06362218]
[1731818306067,0.09367462,233.57,233.52,0.1769469]
[1731818306567,2.1401,233.63,233.54,35.88667528]
[1731818307150,2.1401,233.63,233.52,0.1769469]
[1731818307151,0.09367462,233.56,233.52,0.1769469]
[1731818307373,35.88667528,233.55,233.52,0.1769469]
[1731818307554,2.23467462,233.53,233.52,0.1769469]
[1731818308065,0.34465462,233.52,233.43,35.88667528]
[1731818308372,0.34465462,233.52,233.31,12.7138]
[1731818308373,0.34465462,233.5,233.41,35.88667528]
[1731818308759,0.21916462,233.5,233.41,35.88667528]
[1731818308962,0.09367462,233.51,233.43,35.88667528]
[1731818309472,2.1413,233.5,233.43,35.88667528]
[1731818311262,0.21916462,233.49,233.41,35.88667528]
[1731818311456,2.1415,233.48,233.41,35.88667528]
[1731818311670,2.1415,233.48,233.28,49.20955378]
[1731818311671,0.09367462,233.43,233.37,35.88667528]
[1731818311852,2.2415,233.48,233.37,35.88667528]
[1731818312058,2.1415,233.48,233.39,35.88667528]
[1731818312358,2.1415,233.48,233.43,35.88667528]
[1731818312773,35.88667528,233.55,233.43,35.88667528]
[1731818313078,35.88667528,233.51,233.41,35.88667528]
[1731818313258,35.88667528,233.49,233.39,35.88667528]
[1731818313466,2.1416,233.47,233.39,35.88667528]
[1731818314157,0.34465462,233.46,233.37,35.88667528]
[1731818314954,35.88667528,233.52,233.41,35.88667528]
[1731818315157,0.12549,233.49,233.39,35.88667528]
[1731818315380,0.12549,233.45,233.35,35.88667528]
[1731818315579,2.1419,233.43,233.35,35.88667528]
[1731818315768,35.88667528,233.48,233.37,35.88667528]
[1731818316072,0.09367462,233.46,233.37,35.88667528]
[1731818316282,0.21916462,233.46,233.37,35.88667528]
[1731818316663,0.21916462,233.44,233.37,35.88667528]
[1731818316978,0.21916462,233.44,233.29,15.0027]
[1731818316979,0.21916462,233.42,233.33,35.88667528]
[1731818317183,36.1058399,233.4,233.31,35.88667528]
[1731818317385,35.88667528,233.45,233.33,35.88667528]
[1731818317682,2.1417,233.45,233.37,35.88667528]
[1731818318059,0.09367462,233.44,233.35,35.88667528]
[1731818318473,0.34465462,233.44,233.35,35.88667528]
[1731818318973,0.09367462,233.42,233.35,35.88667528]
[1731818319280,35.88667528,233.45,233.35,40.17197528]
[1731818319470,21.77649244,233.78,233.44,87.77335056]
[1731818319669,0.1,233.87,233.76,35.88667528]
[1731818319887,0.1,233.89,233.8,35.88667528]
[1731818320064,0.1,233.85,233.8,35.88667528]
[1731818320520,0.1,233.81,233.74,35.88667528]
[1731818320883,0.1,233.78,233.72,35.88667528]
[1731818322683,0.1,233.76,233.72,35.88667528]
[1731818322884,0.1,233.78,233.72,35.88667528]
[1731818323686,0.1,233.78,233.71,14.9758]
[1731818323687,0.1,233.78,233.74,35.88667528]
[1731818323899,0.1,233.78,233.72,35.88667528]
[1731818324479,0.1,233.78,233.74,35.88667528]
[1731818325588,0.1,233.78,233.76,35.88667528]
[1731818326694,0.1,233.78,233.74,35.88667528]
[1731818328994,0.1,233.76,233.74,35.88667528]
[1731818329577,0.1,233.69,233.66,35.88667528]
[1731818329777,0.1,233.66,233.64,35.88667528]
[1731818330785,0.1,233.62,233.6,35.88667528]
[1731818331092,0.1,233.6,233.58,35.88667528]
[1731818331884,0.1,233.49,233.38,8.4968639]
[1731818332082,0.1,233.54,233.47,35.88667528]
[1731818332284,0.1,233.54,233.5,35.88667528]
[1731818332772,0.1,233.49,233.46,35.88667528]
[1731818333076,2.1405,233.59,233.48,35.88667528]
[1731818333077,0.22549,233.54,233.48,35.88667528]
[1731818333290,0.1,233.56,233.52,35.88667528]
[1731818333491,0.1,233.6,233.54,35.88667528]
[1731818333689,2.1405,233.72,233.59,35.98667528]
[1731818333885,2.1405,233.72,233.71,35.88667528]
[1731818334173,0.1,233.8,233.71,35.88667528]
[1731818334396,0.1,233.74,233.69,35.88667528]
[1731818334583,0.1,233.74,233.6,20.1]
[1731818334584,0.1,233.74,233.67,35.88667528]
[1731818335293,0.1,233.74,233.68,4.2793]
[1731818335529,0.1,233.76,233.69,35.88667528]
[1731818335711,0.1,233.8,233.75,35.88667528]
[1731818336197,0.1,233.78,233.73,35.88667528]
[1731818337090,0.1,233.76,233.71,35.88667528]
[1731818337290,0.1,233.74,233.71,35.88667528]
[1731818337496,0.1,233.74,233.69,35.88667528]
[1731818337799,0.1,233.76,233.69,35.88667528]
[1731818338094,0.1,233.78,233.73,35.88667528]
[1731818338298,0.1,233.88,233.78,20.0]
[1731818338496,0.1,233.88,233.87,35.88667528]
[1731818338693,0.1,233.9,233.87,35.88667528]
[1731818339080,0.1,234.07,233.89,71.77335056]
[1731818339294,0.1,234.12,234.06,35.88667528]
[1731818339612,0.1,234.22,234.0,0.1]
[1731818339795,0.1,234.22,234.07,0.1]
[1731818340303,0.1,234.22,234.1,20.1]
[1731818340695,0.1,234.3,234.12,0.1]
[1731818340901,0.1,234.26,234.24,35.88667528]
[1731818341202,0.4873719,234.34,234.24,35.88667528]
[1731818341203,0.1,234.33,234.24,40.15567528]
[1731818341419,0.1,234.28,234.23,4.2691]
[1731818341604,0.4873719,234.34,234.26,35.88667528]
[1731818341788,0.4873719,234.34,234.31,35.88667528]
[1731818341984,0.4873719,234.34,234.33,55.88667528]
[1731818342410,0.4873719,234.34,234.33,55.98667528]
[1731818342598,0.1,234.51,234.38,0.1]
[1731818342801,0.1,234.45,234.39,35.88667528]
[1731818343043,0.1,234.51,234.4,10.6655]
[1731818343306,0.1,234.48,234.42,35.88667528]
[1731818343514,0.1,234.45,234.4,46.55217528]
[1731818343688,0.1,234.43,234.4,10.6655]
[1731818344192,0.1,234.53,234.41,35.88667528]
[1731818344497,0.09367462,234.55,234.41,20.0]
[1731818344498,0.1,234.5,234.41,20.0]
[1731818344701,0.1,234.51,234.45,35.88667528]
[1731818344909,0.1,234.49,234.33,21.437]
[1731818345104,0.1,234.49,234.43,35.88667528]
[1731818345789,0.1,234.47,234.43,35.88667528]
[1731818346112,0.1,234.43,234.35,35.88667528]
[1731818346293,0.1,234.45,234.39,35.88667528]
[1731818346620,0.1,234.45,234.37,35.88667528]
[1731818346786,0.1,234.42,234.37,35.88667528]
[1731818346991,0.1,234.35,234.25,35.88667528]
[1731818347296,35.88667528,234.39,234.27,35.88667528]
[1731818347297,0.1,234.36,234.27,35.88667528]
[1731818347502,0.1,234.41,234.34,35.88667528]
[1731818347706,0.1,234.41,234.25,0.1]
[1731818347707,0.1,234.46,234.29,0.1]
[1731818348020,0.1,234.51,234.31,0.1]
[1731818348189,0.1,234.51,234.36,0.1]
[1731818348394,0.1,234.54,234.37,0.85290926]
[1731818348605,0.09367462,234.55,234.48,35.88667528]
[1731818349010,0.1,234.54,234.46,35.88667528]
[1731818349198,0.19367462,234.55,234.45,35.88667528]
[1731818349511,0.1,234.53,234.45,35.88667528]
[1731818349689,0.09367462,234.55,234.51,35.88667528]
[1731818349887,0.1,234.53,234.47,35.88667528]
[1731818350087,0.1,234.52,234.45,35.88667528]
[1731818350304,0.1,234.5,234.43,35.88667528]
[1731818350499,0.1,234.5,234.41,35.88667528]
[1731818350810,0.09367462,234.55,234.49,35.88667528]
[1731818350997,0.09367462,234.55,234.44,0.95261202]
[1731818351198,0.09367462,234.55,234.49,0.1]
[1731818351399,0.09367462,234.55,234.5,0.85235643]
[1731818351795,0.09367462,234.55,234.53,35.88667528]
[1731818351996,0.09367462,234.55,234.54,21.29705553]
[1731818352499,0.09367462,234.55,234.54,20.95240091]
[1731818352810,0.09367462,234.55,234.54,21.29705553]
[1731818353401,0.09367462,234.55,234.54,20.95240091]
[1731818353597,0.09367462,234.55,234.54,21.20338091]
[1731818353810,0.09367462,234.55,234.54,57.18373081]
[1731818354515,0.09367462,234.55,234.54,20.1]
[1731818354695,0.09367462,234.55,234.54,20.0]
[1731818355101,0.09367462,234.55,234.53,35.88667528]
[1731818355495,0.09367462,234.55,234.49,35.88667528]
[1731818357211,0.09367462,234.55,234.31,0.852611]
[1731818357212,0.1,234.52,234.45,35.88667528]
[1731818357417,0.1,234.54,234.45,35.88667528]
[1731818358416,0.1,234.5,234.43,35.88667528]
[1731818358607,0.09367462,234.55,234.49,35.88667528]
[1731818358608,0.19367462,234.55,234.49,35.88667528]
[1731818358795,0.09367462,234.55,234.53,35.88667528]
[1731818359293,0.09367462,234.55,234.54,0.85240055]
[1731818359497,0.09367462,234.55,234.53,35.88667528]
[1731818360013,0.09367462,234.55,234.54,23.776884]
[1731818360515,0.09367462,234.55,234.52,43.776884]
[1731818360727,0.09367462,234.55,234.47,35.88667528]
[1731818361008,0.09367462,234.55,234.52,20.0]
[1731818361216,0.09367462,234.55,234.54,55.88667528]
[1731818361404,35.98667528,234.72,234.55,0.1]
[1731818361604,0.1,234.65,234.55,35.88667528]
[1731818361789,0.1,234.62,234.53,35.88667528]
[1731818362417,0.1,234.58,234.51,35.88667528]
[1731818362608,35.98667528,234.6,234.49,35.88667528]
[1731818362919,0.1,234.61,234.51,35.88667528]
[1731818363096,0.1,234.69,234.57,35.88667528]
[1731818363294,0.1,234.61,234.53,35.88667528]
[1731818363500,0.1,234.63,234.54,23.776884]
[1731818363702,35.88667528,234.64,234.54,23.776884]
[1731818363901,35.88667528,234.68,234.58,23.776884]
[1731818364299,35.98667528,234.7,234.58,23.776884]
[1731818364613,35.88667528,234.7,234.59,35.88667528]
[1731818364808,0.1,234.78,234.65,35.88667528]
[1731818365008,0.1,234.74,234.66,23.776884]
[1731818365204,35.98667528,234.7,234.66,23.776884]
[1731818365540,35.98667528,234.72,234.66,23.776884]
[1731818365913,35.98667528,234.7,234.66,23.776884]
[1731818366119,35.98667528,234.72,234.66,23.776884]
[1731818366418,0.4873719,234.81,234.6,23.776884]
[1731818366419,0.1,234.73,234.6,23.776884]
[1731818366719,35.88667528,234.7,234.6,23.776884]
[1731818367124,0.1,234.69,234.6,23.776884]
[1731818367312,35.88667528,234.7,234.58,23.776884]
[1731818367519,35.88667528,234.66,234.55,35.88667528]
[1731818367715,35.88667528,234.67,234.66,0.1]
[1731818368026,35.88667528,234.67,234.64,0.1]
[1731818368202,32.3750133,234.89,234.71,0.1]
[1731818368521,35.88667528,234.72,234.69,0.1]
[1731818368697,35.88667528,234.72,234.7,0.1]
[1731818368898,35.88667528,234.76,234.73,0.1]
[1731818369117,35.88667528,234.76,234.75,0.1]
[1731818369336,2.1288,234.87,234.75,0.1]
[1731818369637,35.88667528,234.78,234.77,0.2]
[1731818369810,35.88667528,234.8,234.79,0.2]
[1731818370008,35.88667528,234.8,234.77,0.2]
[1731818370218,35.92853281,234.8,234.77,0.2]
[1731818370419,35.92853281,234.8,234.79,0.2]
[1731818370633,35.92853281,234.8,234.79,0.1]
[1731818370934,35.92853281,234.8,234.77,0.2]
[1731818371139,25.87062246,234.89,234.77,0.2]
[1731818371140,35.92853281,234.78,234.77,0.1]
[1731818371320,35.92853281,234.78,234.74,0.1]
[1731818371522,35.92853281,234.77,234.74,0.2]
[1731818371719,35.92853281,234.77,234.74,0.1]
[1731818372105,35.92853281,234.75,234.74,0.1]
[1731818372311,23.74202246,234.89,234.72,0.1]
[1731818372312,104.717913,235.0,234.99,0.2]
[1731818372528,104.717913,235.0,234.94,0.1]
[1731818372529,140.64644581,235.0,234.94,0.1]
[1731818372830,35.92853281,234.94,234.81,0.1]
[1731818373013,2.1277,234.99,234.78,0.1]
[1731818373212,2.1277,234.99,234.76,12.7287]
[1731818373213,2.1277,234.99,234.89,0.1]
[1731818373410,2.1277,234.99,234.88,0.1]
[1731818373620,2.1277,234.99,234.85,0.1]
[1731818374142,2.1277,234.99,234.89,0.1]
[1731818374324,35.92853281,234.92,234.89,0.1]
[1731818374521,2.1277,234.99,234.89,0.1]
[1731818374722,35.92853281,234.92,234.91,0.2]
[1731818374952,35.92853281,234.94,234.91,0.2]
[1731818375231,35.92853281,234.96,234.94,0.1]
[1731818375437,35.92853281,234.96,234.92,0.1]
[1731818376930,35.92853281,234.94,234.86,0.2]
[1731818377115,35.92853281,234.94,234.91,0.1]
[1731818377313,35.92853281,234.94,234.86,0.1]
[1731818377314,35.92853281,234.94,234.88,0.2]
[1731818377731,35.92853281,234.94,234.88,0.1]
[1731818378037,35.92853281,234.9,234.88,0.1]
[1731818378335,35.92853281,234.92,234.89,0.1]
[1731818378650,35.92853281,234.92,234.88,0.1]
[1731818378814,35.92853281,234.92,234.85,0.1]
[1731818379017,35.92853281,234.94,234.91,0.1]
[1731818379319,15.0,234.96,234.91,0.1]
[1731818379519,35.92853281,234.95,234.91,0.1]
[1731818379711,35.92853281,234.93,234.88,0.1]
[1731818379914,35.92853281,234.91,234.87,0.1]
[1731818380133,15.0,234.96,234.95,0.2]
[1731818380332,15.0,234.96,234.95,59.90541681]
[1731818380727,15.0,234.96,234.95,23.976884]
[1731818380928,1.6667,234.96,234.95,60.15639681]
[1731818381235,1.6667,234.96,234.95,65.96274614]
[1731818381621,1.6667,234.96,234.95,66.21372614]
[1731818382120,1.6667,234.96,234.95,66.40740076]
[1731818382418,104.717913,235.0,234.99,0.65098]
[1731818382630,104.717913,235.0,234.99,48.01194776]
[1731818382828,104.717913,235.0,234.99,42.34245096]
[1731818383030,104.717913,235.0,234.99,42.59343096]
[1731818383234,104.717913,235.0,234.99,48.08740571]
[1731818383744,104.717913,235.0,234.99,48.18740571]
[1731818383932,104.717913,235.0,234.99,48.08740571]
[1731818384125,0.4873719,235.05,235.04,0.74465462]
[1731818384444,0.4873719,235.05,235.04,36.97879395]
[1731818384614,0.4873719,235.05,235.04,0.2]
[1731818385122,36.41590471,235.05,235.04,0.2]
[1731818385337,0.4873719,235.05,235.04,0.2]
[1731818385550,35.92853281,235.2,235.08,0.1]
[1731818385717,12.78503944,235.2,235.11,0.1]
[1731818385921,35.92853281,235.12,235.11,0.2]
[1731818386923,35.92853281,235.2,235.15,0.2]
[1731818387238,35.92853281,235.16,235.06,0.2]
[1731818387428,2.1259,235.19,235.09,0.1]
[1731818387935,2.1259,235.19,235.05,0.1]
[1731818388123,35.92853281,235.06,235.04,0.281936]
[1731818388327,35.92853281,235.06,235.05,0.1]
[1731818388539,35.92853281,235.08,235.07,0.2]
[1731818389213,44.57864546,235.2,235.09,0.1]
[1731818389418,46.70454546,235.2,235.07,0.1]
[1731818389635,35.92853281,235.08,235.06,0.1]
[1731818389947,46.70454546,235.2,235.04,0.281936]
[1731818389948,71.85706562,235.07,235.04,0.281936]
[1731818390241,35.92853281,235.05,234.97,0.1]
[1731818390419,35.92853281,235.05,234.94,0.2]
[1731818390420,35.92853281,234.98,234.94,0.2]
[1731818390622,35.92853281,234.95,234.94,0.2]
[1731818391517,35.92853281,234.95,234.91,0.1]
[1731818391717,35.92853281,234.92,234.91,0.1]
[1731818392334,2.128,234.97,234.91,0.1]
[1731818392540,35.92853281,234.93,234.91,0.1]
[1731818392953,0.07381175,235.08,235.07,0.2]
[1731818393124,36.00234456,235.08,235.04,0.2]
[1731818393324,35.92853281,235.05,234.98,0.2]
[1731818393541,35.92853281,234.98,234.96,0.2]
[1731818394234,35.92853281,234.98,234.96,0.1]
[1731818394546,35.92853281,234.98,234.93,0.1]
[1731818394738,35.92853281,234.94,234.91,0.2]
[1731818394942,35.92853281,234.92,234.88,0.2]
[1731818395132,35.92853281,234.9,234.88,0.2]
[1731818395343,35.96995486,234.9,234.88,0.1]
[1731818395578,71.93990972,234.9,234.85,0.6467593]
[1731818395752,35.96995486,234.86,234.85,0.6467593]
[1731818397135,37.24725486,234.86,234.85,0.6467593]
[1731818397531,0.09367462,234.85,234.71,0.1]
[1731818397747,57.59190948,234.86,234.57,70.1]
[1731818397748,35.96995486,234.72,234.68,0.2]
[1731818398263,35.96995486,234.7,234.68,0.1]
[1731818398459,0.09367462,234.85,234.55,46.1871]
[1731818398460,35.96995486,234.72,234.64,0.2]
[1731818398649,35.96995486,234.7,234.67,0.1]
[1731818398857,35.96995486,234.68,234.6,0.1]
[1731818399163,35.96995486,234.67,234.61,0.1]
[1731818399456,35.96995486,234.67,234.6,0.1]
[1731818399837,35.96995486,234.67,234.66,0.1]
[1731818400150,35.96995486,234.69,234.64,0.1]
[1731818400352,35.96995486,234.68,234.67,0.1]
[1731818400930,35.96995486,234.7,234.67,0.1]
[1731818401132,35.96995486,234.68,234.56,0.2]
[1731818401336,35.96995486,234.68,234.53,0.6467593]
[1731818401337,35.96995486,234.57,234.53,0.7467593]
[1731818401552,35.96995486,234.54,234.53,0.6467593]
[1731818402051,36.09544486,234.54,234.53,0.6467593]
[1731818402250,0.34465462,234.53,234.36,0.1]
[1731818402433,41.71075805,234.64,234.44,0.1]
[1731818402434,35.96995486,234.46,234.44,0.1]
[1731818402634,33.1471,234.65,234.5,0.1]
[1731818402635,0.25098,234.63,234.5,0.1]
[1731818402834,33.1471,234.65,234.61,0.1]
[1731818403043,6.67221618,234.65,234.6,0.1]
[1731818403260,1.2783,234.69,234.61,0.1]
[1731818403466,1.2783,234.69,234.46,0.95244314]
[1731818403467,4.4726,234.76,234.58,0.1]
[1731818403638,4.4726,234.76,234.54,0.1]
[1731818403639,0.09367462,234.75,234.56,0.1]
[1731818403949,35.96995486,234.57,234.48,0.1]
[1731818404156,35.96995486,234.57,234.46,0.1]
[1731818404157,35.96995486,234.53,234.46,0.1]
[1731818404463,35.96995486,234.55,234.49,0.1]
[1731818404637,0.34465462,234.71,234.51,0.1]
[1731818404841,0.25098,234.71,234.56,0.1]
[1731818405058,0.12549,234.71,234.56,0.2]
[1731818405353,21.60103636,234.75,234.56,0.1]
[1731818405354,0.12549,234.69,234.56,0.1]
[1731818405559,1.2782,234.7,234.63,0.2]
[1731818405743,1.278,234.73,234.67,0.1]
[1731818406059,1.278,234.73,234.67,0.2]
[1731818406235,35.96995486,234.69,234.63,0.1]
[1731818406557,35.96995486,234.69,234.62,0.1]
[1731818406558,35.96995486,234.71,234.62,0.1]
[1731818406736,35.96995486,234.73,234.66,0.1]
[1731818406932,35.96995486,234.73,234.62,0.1]
[1731818406933,35.96995486,234.71,234.62,0.1]
[1731818407135,35.96995486,234.65,234.56,0.1]
[1731818407337,0.09367462,234.56,234.44,0.1]
[1731818407553,0.09367462,234.64,234.47,0.2]
[1731818407755,0.09367462,234.64,234.49,0.1]
[1731818408158,0.34465462,234.71,234.56,0.1]
[1731818408340,0.34465462,234.71,234.58,0.2]
[1731818408544,0.34465462,234.71,234.53,0.1]
[1731818408847,35.96995486,234.65,234.59,0.1]
[1731818409044,35.96995486,234.63,234.57,0.1]
[1731818409252,35.96995486,234.63,234.57,0.2]
[1731818409438,35.96995486,234.63,234.57,0.1]
[1731818409867,35.96995486,234.63,234.55,0.1]
[1731818410051,35.96995486,234.65,234.57,0.1]
[1731818410255,35.96995486,234.69,234.61,0.1]
[1731818410651,35.96995486,234.69,234.64,0.1]
[1731818410947,0.09367462,234.64,234.52,36.06995486]
[1731818411155,35.96995486,234.64,234.57,0.1]
[1731818411460,35.96995486,234.64,234.54,0.1]
[1731818411657,35.96995486,234.64,234.53,0.1]
[1731818411837,35.96995486,234.64,234.55,0.1]
[1731818412042,1.2783,234.68,234.53,0.1]
[1731818412043,35.96995486,234.66,234.58,0.1]
[1731818412443,37.24825486,234.68,234.61,0.1]
[1731818412963,37.24825486,234.68,234.59,0.2]
[1731818413138,6.64075129,235.2,234.75,0.1]
[1731818413338,32.6375,235.17,234.97,0.1]
[1731818413542,32.6375,235.17,234.99,35.96995486]
[1731818413850,35.96995486,235.16,235.05,0.1]
[1731818414073,35.96995486,235.14,235.03,35.96995486]
[1731818414236,35.96995486,235.15,235.05,0.1]
[1731818414452,12.7709,235.18,235.06,36.06995486]
[1731818414876,1.2756,235.17,235.07,0.1]
[1731818415250,1.2756,235.17,235.09,0.1]
[1731818415468,1.2756,235.17,235.1,35.96995486]
[1731818415676,1.2755,235.2,235.13,0.1]
[1731818416050,35.96995486,235.17,235.09,0.1]
[1731818416454,35.96995486,235.19,235.09,0.1]
[1731818416689,1.2755,235.2,235.11,36.16995486]
[1731818416990,1.2755,235.2,235.14,0.1]
[1731818417779,8.42420137,235.24,235.16,0.1]
[1731818417983,1.2753,235.23,235.16,35.96855794]
[1731818418159,1.2747,235.35,235.27,0.1]
[1731818418479,35.96223256,235.32,235.21,0.1]
[1731818418690,10.53203715,235.33,235.2,0.1]
[1731818418853,10.53203715,235.33,235.21,0.1]
[1731818419058,1.275,235.28,235.23,0.1]
[1731818419557,35.86855794,235.28,235.24,0.1]
[1731818419756,35.86855794,235.26,235.22,0.1]
[1731818419953,35.86855794,235.26,235.22,0.2]
[1731818420154,45.12579509,235.33,235.3,0.1]
[1731818420366,36.50518774,235.33,235.3,0.1]
[1731818420572,0.6366298,235.33,235.3,0.1]
[1731818420779,0.6366298,235.33,235.32,0.2]
[1731818421275,9.8831243,235.52,235.42,0.1]
[1731818421481,1.2737,235.52,235.4,0.1]
[1731818421657,1.2737,235.52,235.46,0.1]
[1731818421976,1.2737,235.52,235.35,0.1]
[1731818422186,35.86855794,235.44,235.43,0.1]
[1731818422474,32.6375,235.72,235.45,0.1]
[1731818422475,35.86855794,235.46,235.45,0.1]
[1731818422672,20.0,235.53,235.51,0.1]
[1731818422876,20.0,235.53,235.52,0.1]
[1731818423176,20.0,235.53,235.51,0.1]
[1731818423374,21.2737,235.53,235.48,0.1]
[1731818423594,21.2737,235.53,235.43,0.1]
[1731818423881,21.2737,235.53,235.46,0.1]
[1731818424066,21.2737,235.53,235.47,0.1]
[1731818424386,21.2737,235.53,235.5,0.1]
[1731818424561,20.0,235.53,235.51,0.1]
[1731818424880,21.2737,235.53,235.5,0.1]
[1731818425064,21.2737,235.53,235.48,0.1]
[1731818425261,21.2737,235.53,235.44,0.1]
[1731818425462,21.2737,235.53,235.42,0.1]
[1731818425767,35.78640529,235.43,235.41,0.1]
[1731818425965,35.78640529,235.43,235.42,0.1]
[1731818426461,20.0,235.53,235.52,0.1]
[1731818426674,55.78640529,235.53,235.52,0.1]
[1731818427182,20.0,235.53,235.52,0.1]
[1731818427372,20.0,235.53,235.52,0.2]
[1731818429155,20.0,235.53,235.32,0.36437185]
[1731818429156,21.2737,235.53,235.5,0.1]
[1731818429363,21.2737,235.53,235.37,35.78640529]
[1731818429364,35.78640529,235.51,235.48,0.2]
[1731818429564,35.78640529,235.49,235.48,0.2]
[1731818430278,35.78640529,235.51,235.5,0.2]
[1731818430665,55.78640529,235.53,235.52,0.2]
[1731818431180,20.0,235.53,235.52,0.29367462]
[1731818431388,35.78640529,235.63,235.6,0.1]
[1731818431561,1.2725,235.75,235.6,0.1]
[1731818431562,35.78640529,235.61,235.6,0.1]
[1731818432284,9.58063508,235.79,235.49,35.78640529]
[1731818432285,9.58063508,235.79,235.72,0.1]
[1731818432492,0.9711519,235.79,235.75,0.1]
[1731818432657,35.78640529,235.76,235.75,0.1]
[1731818432976,35.78640529,235.76,235.73,0.2]
[1731818433165,2.2434519,235.79,235.76,0.1]
[1731818433372,0.9711519,235.79,235.78,0.1]
[1731818434057,36.75755719,235.79,235.78,0.02618825]
[1731818434462,0.9711519,235.79,235.78,0.12618825]
[1731818434682,36.75755719,235.79,235.78,0.02618825]
[1731818434896,36.75755719,235.79,235.7,0.1]